fUST/lending_fUST_20240521
["ID","MTS","AMOUNT","RATE_DAILY","PERIOD"]
[327629194,1716257447417,-500.0,0.00046575,40]
[327629195,1716257447427,-500.0,0.00046575,40]
[327629196,1716257447436,-500.0,0.00046575,40]
[327629197,1716257447445,-415.65557693,0.00046575,40]
[327629198,1716257447455,-500.0,0.00046575,40]
[327629199,1716257447465,-500.0,0.00046575,40]
[327629200,1716257447475,-500.0,0.00046575,40]
[327629201,1716257447485,-500.0,0.00046575,40]
[327629202,1716257447495,-540.85632008,0.00046575,40]
[327629203,1716257447505,-500.0,0.00046575,40]
[327629204,1716257447514,-500.0,0.00046575,40]
[327629205,1716257447549,-500.0,0.00046575,40]
[327629206,1716257447559,-596.62889671,0.00046575,40]
[327629207,1716257447569,-500.0,0.00046575,40]
[327629208,1716257447578,-621.48280481,0.00046575,40]
[327629209,1716257447588,-524.59,0.00046575,40]
[327629210,1716257447597,-500.0,0.00046575,40]
[327629211,1716257447607,-500.0,0.00046575,40]
[327629212,1716257447616,-500.0,0.00046575,40]
[327629213,1716257447625,-500.0,0.00046575,40]
[327629214,1716257447635,-500.0,0.00046575,40]
[327629215,1716257447645,-500.0,0.00046575,40]
[327629216,1716257447655,-500.0,0.00046575,40]
[327629217,1716257447664,-500.0,0.00046575,40]
[327629218,1716257447674,-500.0,0.00046575,40]
[327629219,1716257447684,-500.0,0.00046575,40]
[327629220,1716257447695,-500.0,0.00046575,40]
[327629221,1716257447704,-500.0,0.00046575,40]
[327629222,1716257447713,-500.0,0.00046575,40]
[327629223,1716257447723,-500.0,0.00046575,40]
[327629224,1716257447733,-558.76891936,0.00046575,40]
[327629225,1716257447743,-483.86245262,0.00046849,51]
[327629226,1716257447752,-500.0,0.00046849,51]
[327629227,1716257447762,-266.21620923,0.00046849,41]
[327629228,1716257447771,-462.63077177,0.00046849,41]
[327629229,1716257447780,-360.65398965,0.00046849,41]
[327629230,1716257447790,-500.0,0.00046849,41]
[327629231,1716257447799,-225.43414396,0.00046849,41]
[327629232,1716257447808,-590.40545441,0.00046849,41]
[327629233,1716257447817,-500.0,0.00046849,7]
[327629234,1716257447827,-274.29020323,0.00046849,41]
[327629235,1716257447836,-346.22070332,0.00046849,41]
[327629236,1716257447845,-500.0,0.00046849,41]
[327629237,1716257447855,-500.0,0.00046849,41]
[327629238,1716257447864,-202.34792495,0.00046849,41]
[327629239,1716257447874,-500.0,0.00046849,41]
[327629240,1716257447884,-500.0,0.00046849,41]
[327629241,1716257447896,-315.08008985,0.00046849,41]
[327629242,1716257447906,-500.0,0.00046849,41]
[327629243,1716257447915,-500.0,0.00046849,41]
[327629244,1716257447926,-822.42,0.00046849,41]
[327629245,1716257447935,-201.33417523,0.00046849,41]
[327629246,1716257447944,-500.0,0.00046849,21]
[327629247,1716257447953,-500.0,0.00046849,41]
[327629248,1716257447963,-500.0,0.00046849,41]
[327629249,1716257447974,-590.93958705,0.00046849,41]
[327629250,1716257447984,-500.0,0.00046849,41]
[327629251,1716257447993,-223.57890359,0.00046849,41]
[327629252,1716257448002,-449.90189363,0.00046849,41]
[327629253,1716257448011,-500.0,0.00046849,41]
[327629254,1716257448021,-183.18218981,0.00046849,41]
[327629255,1716257448030,-180.66654638,0.00046849,41]
[327629256,1716257448039,-361.31201403,0.00046849,41]
[327629257,1716257448048,-155.5287828,0.00046849,41]
[327629258,1716257448058,-500.0,0.00046849,41]
[327629259,1716257448067,-204.42852433,0.00046849,41]
[327629260,1716257448077,-298.21578182,0.00046849,41]
[327629261,1716257448086,-206.54775393,0.00046849,41]
[327629262,1716257448095,-873.28,0.00046849,41]
[327629263,1716257448104,-197.40867065,0.00046849,41]
[327629264,1716257448113,-500.0,0.00046849,41]
[327629265,1716257448122,-187.01352744,0.00046849,41]
[327629266,1716257448132,-500.0,0.00046849,30]
[327629267,1716257448141,-500.0,0.00046849,41]
[327629268,1716257448150,-198.33500012,0.00046849,41]
[327629269,1716257448160,-500.0,0.00046849,41]
[327629270,1716257448169,-199.18354032,0.00046849,41]
[327629271,1716257448178,-500.0,0.00046849,41]
[327629272,1716257448188,-500.0,0.00046849,41]
[327629273,1716257448197,-500.0,0.00046849,41]
[327629274,1716257448207,-500.0,0.00046849,41]
[327629275,1716257448215,-500.0,0.00046849,41]
[327629276,1716257448225,-500.0,0.00046849,41]
[327629277,1716257448235,-500.0,0.00046849,41]
[327629278,1716257448244,-500.0,0.00046849,41]
[327629279,1716257448253,-195.7868257,0.00046849,41]
[327629280,1716257448263,-168.47552475,0.00046849,41]
[327629281,1716257448272,-500.0,0.00046849,41]
[327629282,1716257448282,-289.54180083,0.00046849,41]
[327629283,1716257448291,-240.33324088,0.00046849,41]
[327629284,1716257448301,-320.79464957,0.00046849,41]
[327629285,1716257448310,-315.5047335,0.00046849,41]
[327629286,1716257448320,-494.91334275,0.00046849,41]
[327629287,1716257448330,-500.0,0.00046849,41]
[327629288,1716257448339,-278.95624082,0.00046849,41]
[327629289,1716257448348,-500.0,0.00046849,41]
[327629290,1716257448357,-479.90699471,0.00046849,41]
[327629291,1716257448367,-524.59,0.00046849,41]
[327629292,1716257448376,-405.90739613,0.00046849,41]
[327629293,1716257448386,-500.0,0.00046849,41]
[327629294,1716257448396,-460.32804313,0.00046849,41]
[327629295,1716257448406,-500.0,0.00046849,41]
[327629296,1716257448415,-500.0,0.00046849,41]
[327629297,1716257448424,-500.0,0.00046849,41]
[327629298,1716257448433,-225.11157118,0.00046849,41]
[327629299,1716257448443,-389.07014472,0.00046849,41]
[327629300,1716257448452,-446.21890894,0.00046849,41]
[327629301,1716257448461,-500.0,0.00046849,41]
[327629302,1716257448470,-500.0,0.00046849,41]
[327629303,1716257448480,-500.0,0.00046849,41]
[327629304,1716257448490,-321.09557075,0.00046849,41]
[327629305,1716257448499,-500.0,0.00046849,41]
[327629306,1716257448509,-1696.96969697,0.0004712,19]
[327629307,1716257448518,-1696.96969697,0.0004712,19]
[327629308,1716257448528,-500.0,0.00047123,52]
[327629309,1716257448537,-500.0,0.00047123,42]
[327629310,1716257448546,-500.0,0.00047123,7]
[327629311,1716257448556,-500.0,0.00047123,42]
[327629312,1716257448565,-500.0,0.00047123,42]
[327629313,1716257448575,-198.84477013,0.00047123,42]
[327629314,1716257448584,-283.2236804,0.00047123,42]
[327629315,1716257448594,-500.0,0.00047123,42]
[327629316,1716257448603,-500.0,0.00047123,42]
[327629317,1716257448612,-822.42,0.00047123,42]
[327629318,1716257448622,-500.0,0.00047123,21]
[327629319,1716257448632,-500.0,0.00047123,42]
[327629320,1716257448641,-500.0,0.00047123,42]
[327629321,1716257448651,-500.0,0.00047123,42]
[327629322,1716257448661,-478.75225188,0.00047123,42]
[327629323,1716257448671,-500.0,0.00047123,42]
[327629324,1716257448680,-873.28,0.00047123,42]
[327629325,1716257448690,-288.60873246,0.00047123,42]
[327629326,1716257448699,-500.0,0.00047123,30]
[327629327,1716257448709,-500.0,0.00047123,42]
[327629328,1716257448718,-500.0,0.00047123,42]
[327629329,1716257448728,-500.0,0.00047123,42]
[327629330,1716257448738,-357.15472268,0.00047123,42]
[327629331,1716257448747,-312.11545381,0.00047123,42]
[327629332,1716257448756,-500.0,0.00047123,42]
[327629333,1716257448766,-325.13228782,0.00047123,42]
[327629334,1716257448775,-500.0,0.00047123,42]
[327629335,1716257448785,-500.0,0.00047123,42]
[327629336,1716257448794,-500.0,0.00047123,42]
[327629337,1716257448804,-500.0,0.00047123,42]
[327629338,1716257448813,-500.0,0.00047123,42]
[327629339,1716257448822,-500.0,0.00047123,42]
[327629340,1716257448831,-524.59,0.00047123,42]
[327629341,1716257448841,-500.0,0.00047123,42]
[327629342,1716257448851,-213.89553509,0.00047123,42]
[327629343,1716257448860,-500.0,0.00047123,42]
[327629344,1716257448870,-500.0,0.00047123,42]
[327629345,1716257448888,-500.0,0.00047123,42]
[327629346,1716257448897,-500.0,0.00047123,42]
[327629347,1716257448907,-522.05402263,0.00047123,42]
[327629348,1716257448916,-500.0,0.00047123,42]
[327629349,1716257448927,-500.0,0.00047397,53]
[327629350,1716257448936,-576.15650573,0.00047397,43]
[327629351,1716257448946,-500.0,0.00047397,7]
[327629352,1716257448955,-500.0,0.00047397,43]
[327629353,1716257448964,-215.73611192,0.00047397,43]
[327629354,1716257448975,-500.0,0.00047397,43]
[327629355,1716257448984,-500.0,0.00047397,43]
[327629356,1716257448994,-822.42,0.00047397,43]
[327629357,1716257449003,-500.0,0.00047397,21]
[327629358,1716257449013,-428.2765414,0.00047397,43]
[327629359,1716257449022,-500.0,0.00047397,43]
[327629360,1716257449032,-197.75149483,0.00047397,43]
[327629361,1716257449040,-500.0,0.00047397,43]
[327629362,1716257449050,-873.28,0.00047397,43]
[327629363,1716257449059,-500.0,0.00047397,30]
[327629364,1716257449068,-517.33144224,0.00047397,43]
[327629365,1716257449077,-500.0,0.00047397,43]
[327629366,1716257449087,-500.0,0.00047397,43]
[327629367,1716257449096,-211.76116989,0.00047397,43]
[327629368,1716257449105,-500.0,0.00047397,43]
[327629369,1716257449114,-500.0,0.00047397,43]
[327629370,1716257449124,-500.0,0.00047397,43]
[327629371,1716257449133,-453.63313859,0.00047397,43]
[327629372,1716257449143,-500.0,0.00047397,43]
[327629373,1716257449152,-500.0,0.00047397,43]
[327629374,1716257449161,-524.59,0.00047397,43]
[327629375,1716257449171,-500.0,0.00047397,43]
[327629376,1716257449181,-500.0,0.00047397,43]
[327629377,1716257449190,-500.0,0.00047397,43]
[327629378,1716257449199,-357.15683479,0.00047397,43]
[327629379,1716257449209,-245.87444323,0.00047397,43]
[327629380,1716257449219,-500.0,0.00047397,43]
[327629381,1716257449230,-3939.20563018,0.00047603,120]
[327629382,1716257449239,-415.75694494,0.00047614,120]
[327629383,1716257449249,-269.71729322,0.00047671,54]
[327629384,1716257449259,-500.0,0.00047671,7]
[327629385,1716257449268,-500.0,0.00047671,44]
[327629386,1716257449278,-500.0,0.00047671,44]
[327629387,1716257449287,-152.15103093,0.00047671,44]
[327629388,1716257449296,-822.42,0.00047671,44]
[327629389,1716257449305,-500.0,0.00047671,21]
[327629390,1716257449314,-500.0,0.00047671,44]
[327629391,1716257449324,-500.0,0.00047671,44]
[327629392,1716257449333,-873.28,0.00047671,44]
[327629393,1716257449342,-500.0,0.00047671,30]
[327629394,1716257449351,-500.0,0.00047671,44]
[327629395,1716257449361,-500.0,0.00047671,44]
[327629396,1716257449370,-500.0,0.00047671,44]
[327629397,1716257449380,-500.0,0.00047671,44]
[327629398,1716257449389,-500.0,0.00047671,44]
[327629399,1716257449399,-500.0,0.00047671,44]
[327629400,1716257449408,-500.0,0.00047671,44]
[327629401,1716257449418,-524.59,0.00047671,44]
[327629402,1716257449427,-500.0,0.00047671,44]
[327629403,1716257449436,-500.0,0.00047671,44]
[327629404,1716257449445,-500.0,0.00047671,44]
[327629405,1716257449455,-500.0,0.00047671,44]
[327629406,1716257449465,-3939.20563018,0.00047712,120]
[327629407,1716257449474,-415.75694494,0.00047911,120]
[327629408,1716257449485,-571.45979347,0.00047945,7]
[327629409,1716257449494,-500.0,0.00047945,45]
[327629410,1716257449503,-500.0,0.00047945,45]
[327629411,1716257449512,-822.42,0.00047945,45]
[327629412,1716257449522,-500.0,0.00047945,21]
[327629413,1716257449531,-500.0,0.00047945,45]
[327629414,1716257449540,-500.0,0.00047945,45]
[327629415,1716257449550,-873.28,0.00047945,45]
[327629416,1716257449559,-500.0,0.00047945,30]
[327629417,1716257449569,-500.0,0.00047945,45]
[327629418,1716257449578,-515.998239,0.00047945,45]
[327629419,1716257449587,-500.0,0.00047945,45]
[327629420,1716257449596,-500.0,0.00047945,45]
[327629421,1716257449606,-500.0,0.00047945,45]
[327629422,1716257449615,-500.0,0.00047945,45]
[327629423,1716257449625,-500.0,0.00047945,45]
[327629424,1716257449634,-524.59,0.00047945,45]
[327629425,1716257449644,-500.0,0.00047945,45]
[327629426,1716257449653,-500.0,0.00047945,45]
[327629427,1716257449662,-500.0,0.00047945,45]
[327629428,1716257449672,-598.85355204,0.00047945,45]
[327629429,1716257449681,-415.75694494,0.00047989,120]
[327629430,1716257449690,-237.868146,0.00048089,2]
[327629431,1716257449699,-3939.20563018,0.00048119,120]
[327629432,1716257449709,-500.0,0.00048219,46]
[327629433,1716257449718,-500.0,0.00048219,46]
[327629434,1716257449729,-822.42,0.00048219,46]
[327629435,1716257449738,-500.0,0.00048219,21]
[327629436,1716257449747,-500.0,0.00048219,46]
[327629437,1716257449756,-500.0,0.00048219,46]
[327629438,1716257449766,-873.28,0.00048219,46]
[327629439,1716257449775,-500.0,0.00048219,30]
[327629440,1716257449784,-500.0,0.00048219,46]
[327629441,1716257449794,-500.0,0.00048219,46]
[327629442,1716257449803,-500.0,0.00048219,46]
[327629443,1716257449812,-265.48791972,0.00048219,46]
[327629444,1716257449821,-500.0,0.00048219,46]
[327629445,1716257449830,-500.0,0.00048219,46]
[327629446,1716257449840,-524.59,0.00048219,46]
[327629447,1716257449850,-500.0,0.00048219,46]
[327629448,1716257449859,-500.0,0.00048219,46]
[327629449,1716257449869,-500.0,0.00048219,46]
[327629450,1716257449881,-415.75694494,0.0004827,120]
[327629451,1716257449894,-3939.20563018,0.00048283,120]
[327629452,1716257449903,-500.0,0.00048493,47]
[327629453,1716257449912,-500.0,0.00048493,47]
[327629454,1716257449922,-822.42,0.00048493,47]
[327629455,1716257449933,-500.0,0.00048493,21]
[327629456,1716257449942,-397.22343483,0.00048493,47]
[327629457,1716257449951,-500.0,0.00048493,47]
[327629458,1716257449960,-873.28,0.00048493,47]
[327629459,1716257449972,-500.0,0.00048493,30]
[327629460,1716257449984,-500.0,0.00048493,47]
[327629461,1716257449994,-424.18875887,0.00048493,47]
[327629462,1716257450003,-500.0,0.00048493,47]
[327629463,1716257450013,-500.0,0.00048493,47]
[327629464,1716257450022,-500.0,0.00048493,47]
[327629465,1716257450032,-524.59,0.00048493,47]
[327629466,1716257450042,-500.0,0.00048493,47]
[327629467,1716257450051,-500.0,0.00048493,47]
[327629468,1716257450062,-500.0,0.00048493,47]
[327629469,1716257450072,-415.75694494,0.00048679,120]
[327629470,1716257450082,-3939.20563018,0.00048752,120]
[327629471,1716257450091,-243.94966726,0.00048767,48]
[327629472,1716257450100,-536.58059174,0.00048767,48]
[327629473,1716257450110,-444.05792094,0.00048767,21]
[327629474,1716257450119,-500.0,0.00048767,48]
[327629475,1716257450128,-873.28,0.00048767,48]
[327629476,1716257450138,-500.0,0.00048767,30]
[327629477,1716257450147,-500.0,0.00048767,48]
[327629478,1716257450157,-500.0,0.00048767,48]
[327629479,1716257450166,-569.80458683,0.00048767,48]
[327629480,1716257450176,-524.59,0.00048767,48]
[327629481,1716257450186,-500.0,0.00048767,48]
[327629482,1716257450196,-500.0,0.00048767,48]
[327629483,1716257450205,-500.0,0.00048767,48]
[327629484,1716257450215,-3939.20563018,0.00048869,120]
[327629485,1716257450225,-415.75694494,0.00048922,120]
[327629486,1716257450236,-10000.0,0.00049,30]
[327629487,1716257450245,-500.0,0.00049041,49]
[327629488,1716257450255,-873.28,0.00049041,49]
[327629489,1716257450264,-585.56483234,0.00049041,30]
[327629490,1716257450274,-500.0,0.00049041,49]
[327629491,1716257450283,-543.4662696,0.00049041,49]
[327629492,1716257450293,-524.59,0.00049041,49]
[327629493,1716257450303,-500.0,0.00049041,49]
[327629494,1716257450312,-500.0,0.00049041,49]
[327629495,1716257450321,-276.48501557,0.00049041,49]
[327629496,1716257450330,-415.75694494,0.0004915,120]
[327629497,1716257450339,-3939.20563018,0.00049206,120]
[327629498,1716257450350,-500.0,0.00049315,120]
[327629499,1716257450359,-20000.0,0.00049315,120]
[327629500,1716257450368,-20000.0,0.00049315,120]
[327629501,1716257450378,-20000.0,0.00049315,120]
[327629502,1716257450387,-20000.0,0.00049315,120]
[327629503,1716257450397,-20000.0,0.00049315,120]
[327629504,1716257450407,-20000.0,0.00049315,120]
[327629505,1716257450417,-20000.0,0.00049315,120]
[327629506,1716257450426,-20000.0,0.00049315,120]
[327629507,1716257450435,-20000.0,0.00049315,120]
[327629508,1716257450445,-20000.0,0.00049315,120]
[327629509,1716257450455,-20000.0,0.00049315,120]
[327629510,1716257450464,-873.28,0.00049315,120]
[327629511,1716257450474,-594.91536485,0.00049315,120]
[327629512,1716257450486,-524.59,0.00049315,120]
[327629513,1716257450496,-500.0,0.00049315,120]
[327629514,1716257450505,-500.0,0.00049315,120]
[327629515,1716257450514,-3939.20563018,0.00049323,120]
[327629516,1716257450523,-415.75694494,0.00049395,120]
[327629517,1716257450532,-1696.96969697,0.000494,19]
[327629518,1716257450542,-1696.96969697,0.000494,19]
[327629519,1716257450551,-2431.51943206,0.000495,3]
[327629520,1716257450560,-500.0,0.00049589,120]
[327629521,1716257450570,-20000.0,0.00049589,120]
[327629522,1716257450579,-873.28,0.00049589,120]
[327629523,1716257450589,-524.59,0.00049589,120]
[327629524,1716257450598,-500.0,0.00049589,120]
[327629525,1716257450608,-500.0,0.00049589,120]
[327629526,1716257450617,-415.75694494,0.00049741,120]
[327629527,1716257450626,-3939.20563018,0.00049858,120]
[327629528,1716257450636,-500.0,0.00049863,120]
[327629529,1716257450645,-20000.0,0.00049863,120]
[327629530,1716257450655,-873.28,0.00049863,120]
[327629531,1716257450664,-524.59,0.00049863,120]
[327629532,1716257450674,-500.0,0.00049863,120]
[327629533,1716257450683,-500.0,0.00049863,120]
[327629534,1716257450693,-268154.28159506,0.0005,63]
[327629535,1716257450703,-1494.47734634,0.0005,2]
[327629536,1716257450715,-549.67987339,0.0005,15]
[327629537,1716257450725,-219.83300377,0.0005,4]
[327629538,1716257450737,-240.93914014,0.0005,4]
[327629539,1716257450747,-240.93914014,0.0005,4]
[327629540,1716257450757,-3000.0,0.0005,2]
[327629541,1716257450766,-160.0,0.0005,41]
[327629542,1716257450776,-238.868682,0.0005,2]
[327629543,1716257450786,-811.31394476,0.0005,7]
[327629544,1716257450795,-155.0,0.0005,30]
[327629545,1716257450804,-19294.67838121,0.0005,4]
[327629546,1716257450814,-3386.0633467,0.0005,2]
[327629547,1716257450824,-286.61863905,0.0005,2]
[327629548,1716257450834,-310.04367162,0.0005,2]
[327629549,1716257450844,-559.79938777,0.0005,30]
[327629550,1716257450853,-2260.80777895,0.0005,60]
[327629551,1716257450863,-500.0,0.00050136,120]
[327629552,1716257450873,-20000.0,0.00050136,120]
[327629553,1716257450887,-873.28,0.00050136,120]
[327629554,1716257450896,-524.59,0.00050136,120]
[327629555,1716257450906,-500.0,0.00050136,120]
[327629556,1716257450915,-500.0,0.00050136,120]
[327629557,1716257450926,-415.75694494,0.00050258,120]
[327629558,1716257450936,-5114.94939988,0.00050264,120]
[327629559,1716257450945,-3939.20563018,0.00050296,120]
[327629560,1716257450956,-300.0,0.000503,15]
[327629561,1716257450966,-500.0,0.0005041,120]
[327629562,1716257450976,-20000.0,0.0005041,120]
[327629563,1716257450988,-873.28,0.0005041,120]
[327629564,1716257450998,-524.59,0.0005041,120]
[327629565,1716257451008,-500.0,0.0005041,120]
[327629566,1716257451017,-500.0,0.0005041,120]
[327629567,1716257451027,-160.0,0.00050482,10]
[327629568,1716257451037,-415.75694494,0.00050485,120]
[327629569,1716257451046,-2556.58374564,0.000505,30]
[327629570,1716257451056,-3939.20563018,0.00050518,120]
[327629571,1716257451066,-500.0,0.00050684,120]
[327629572,1716257451075,-20000.0,0.00050684,120]
[327629573,1716257451087,-873.28,0.00050684,120]
[327629574,1716257451097,-524.59,0.00050684,120]
[327629575,1716257451108,-381.54449666,0.00050684,120]
[327629576,1716257451117,-500.0,0.00050684,120]
[327629577,1716257451127,-151.0,0.00050767,120]
[327629578,1716257451137,-153.0,0.00050822,2]
[327629579,1716257451147,-153.0,0.00050822,2]
[327629580,1716257451156,-3939.20563018,0.00050838,120]
[327629581,1716257451166,-415.75694494,0.00050859,120]
[327629582,1716257451175,-500.0,0.00050958,120]
[327629583,1716257451185,-20000.0,0.00050958,120]
[327629584,1716257451194,-873.28,0.00050958,120]
[327629585,1716257451203,-524.59,0.00050958,120]
[327629586,1716257451213,-500.0,0.00050958,120]
[327629587,1716257451222,-415.75694494,0.00050994,120]
[327629588,1716257451235,-44393.00066363,0.00050998,2]
[327629589,1716257451245,-1000.0,0.00051,51]
[327629590,1716257451254,-3000.0,0.00051,85]
[327629591,1716257451264,-3000.0,0.0005101,85]
[327629592,1716257451273,-3939.20563029,0.00051019,120]
[327629593,1716257451283,-3000.0,0.0005102,85]
[327629594,1716257451292,-3000.0,0.0005103,85]
[327629595,1716257451301,-3000.0,0.0005104,85]
[327629596,1716257451311,-3000.0,0.0005105,85]
[327629597,1716257451321,-3000.0,0.0005106,85]
[327629598,1716257451331,-4795.914021,0.0005107,85]
[327629599,1716257451340,-500.0,0.00051232,120]
[327629600,1716257451350,-20000.0,0.00051232,120]
[327629601,1716257451359,-873.28,0.00051232,120]
[327629602,1716257451368,-524.59,0.00051232,120]
[327629603,1716257451378,-500.0,0.00051232,120]
[327629604,1716257451388,-154.84515485,0.0005144,10]
[327629605,1716257451398,-415.75694497,0.00051491,120]
[327629606,1716257451407,-500.0,0.00051506,120]
[327629607,1716257451417,-20000.0,0.00051506,120]
[327629608,1716257451427,-873.28,0.00051506,120]
[327629609,1716257451437,-524.59,0.00051506,120]
[327629610,1716257451447,-500.0,0.00051506,120]
[327629611,1716257451456,-160.0,0.00051518,11]
[327629612,1716257451466,-151.0,0.00051726,120]
[327629613,1716257451476,-40715.84,0.0005177,120]
[327629614,1716257451490,-500.0,0.0005178,120]
[327629615,1716257451500,-20000.0,0.0005178,120]
[327629616,1716257451527,-873.28,0.0005178,120]
[327629617,1716257451537,-524.59,0.0005178,120]
[327629618,1716257451547,-246.81964812,0.0005178,120]
[327629619,1716257451557,-1008.17,0.000518,120]
[327629620,1716257451566,-1965.64599968,0.000519,120]
[327629621,1716257451576,-1000.0,0.00051999,120]
[327629622,1716257451586,-10137.900559,0.00052,120]
[327629623,1716257451596,-618.99,0.00052054,40]
[327629624,1716257451606,-618.99,0.00052054,41]
[327629625,1716257451616,-618.99,0.00052054,42]
[327629626,1716257451627,-618.99,0.00052054,43]
[327629627,1716257451637,-618.99,0.00052054,44]
[327629628,1716257451647,-618.99,0.00052054,45]
[327629629,1716257451657,-618.99,0.00052054,46]
[327629630,1716257451667,-618.99,0.00052054,47]
[327629631,1716257451677,-618.99,0.00052054,48]
[327629632,1716257451687,-618.99,0.00052054,49]
[327629633,1716257451697,-618.99,0.00052054,50]
[327629634,1716257451706,-618.99,0.00052054,51]
[327629635,1716257451716,-618.99,0.00052054,52]
[327629636,1716257451725,-618.99,0.00052054,53]
[327629637,1716257451737,-618.99,0.00052054,54]
[327629638,1716257451747,-618.99,0.00052054,55]
[327629639,1716257451757,-618.99,0.00052054,56]
[327629640,1716257451767,-618.99,0.00052054,57]
[327629641,1716257451776,-618.99,0.00052054,58]
[327629642,1716257451786,-618.99,0.00052054,59]
[327629643,1716257451795,-618.99,0.00052054,120]
[327629644,1716257451805,-618.99,0.00052054,120]
[327629645,1716257451815,-618.99,0.00052054,120]
[327629646,1716257451824,-619.1016599,0.00052054,120]
[327629647,1716257451834,-500.0,0.00052054,120]
[327629648,1716257451844,-20000.0,0.00052054,120]
[327629649,1716257451854,-873.28,0.00052054,120]
[327629650,1716257451863,-524.59,0.00052054,120]
[327629651,1716257451872,-188.00686118,0.00052328,120]
[327629652,1716257451883,-20000.0,0.00052328,120]
[327629653,1716257451898,-873.28,0.00052328,120]
[327629654,1716257451908,-524.59,0.00052328,120]
[327629655,1716257451918,-1000.0,0.000525,2]
[327629656,1716257451928,-160.0,0.00052553,12]
[327629657,1716257451938,-7368.48209844,0.00052602,120]
[327629658,1716257451948,-873.28,0.00052602,120]
[327629659,1716257451958,-524.59,0.00052602,120]
[327629660,1716257451969,-10000.0,0.0005266,120]
[327629661,1716257451981,-151.0,0.00052685,120]
[327629662,1716257451991,-873.4950893,0.00052876,120]
[327629663,1716257452000,-524.72128083,0.00052876,120]
[327629664,1716257452010,-1000.0,0.00053,53]
[327629665,1716257452020,-160.0,0.00053588,13]
[327629666,1716257452030,-272.10386463,0.00053588,5]
[327629667,1716257452039,-151.0,0.00053644,120]
[327629668,1716257452048,-10000.0,0.0005366,120]
[327629669,1716257452059,-1000.0,0.00054,120]
[327629670,1716257452069,-700.76,0.00054,120]
[327629671,1716257452078,-237.868146,0.00054016,2]
[327629672,1716257452088,-5000.0,0.000545,30]
[327629673,1716257452097,-151.0,0.00054603,120]
[327629674,1716257452107,-10000.0,0.00054666,120]
[327629675,1716257452116,-500.0,0.00054794,120]
[327629676,1716257452125,-500.0,0.00054794,120]
[327629677,1716257452135,-500.0,0.00054794,120]
[327629678,1716257452144,-500.0,0.00054794,120]
[327629679,1716257452154,-500.0,0.00054794,120]
[327629680,1716257452164,-500.0,0.00054794,120]
[327629681,1716257452174,-500.0,0.00054794,120]
[327629682,1716257452183,-500.0,0.00054794,120]
[327629683,1716257452193,-500.0,0.00054794,120]
[327629684,1716257452202,-500.0,0.00054794,120]
[327629685,1716257452212,-500.0,0.00054794,120]
[327629686,1716257452221,-500.0,0.00054794,120]
[327629687,1716257452233,-500.0,0.00054794,120]
[327629688,1716257452243,-500.0,0.00054794,120]
[327629689,1716257452252,-500.0,0.00054794,120]
[327629690,1716257452405,-500.0,0.00054794,120]
[327629691,1716257452416,-500.0,0.00054794,120]
[327629692,1716257452425,-330.8063492,0.00054794,120]
[327629693,1716257452435,-500.0,0.00054794,40]